Workbook

Sheet Rozpocet 2022
A1: 00298468 Město Štramberk
A2: Náměstí 9 Štramberk
A3: PLNĚNÍ ROZPOČTU K 31.10.2021 V KČ - ROZPOČET NA ROK 2022
A4: ORJ | B4: ORG | C4: ODPA | D4: POL | E4: Popis | F4: Příjmy - UR | G4: Příjmy - Čerpání | H4: Rozpočet - Příjmy 2022 | I4: Č/UR% | J4: Výdaje - UR | K4: Výdaje - Čerpání | L4: Rozpočet - Výdaje 2022 | M4: Č/UR%
A5: 11 | D5: 1111 | E5: Daň z příjmů fyzických osob placená plátci | F5: 7900000 | G5: 6816102.76 | H5: 8400000 | I5: 86.28 | J5: 0 | K5: 0 | M5: 0
A6: 11 | D6: 1112 | E6: Daň z příjmů fyzických osob placená poplatníky | F6: 210000 | G6: 344442.33 | H6: 430000 | I6: 164.02 | J6: 0 | K6: 0 | M6: 0
A7: 11 | D7: 1113 | E7: Daň z příjmů fyzických osob vybíraná srážkou | F7: 1100000 | G7: 1201399.83 | H7: 1350000 | I7: 109.22 | J7: 0 | K7: 0 | M7: 0
A8: 11 | D8: 1121 | E8: Daň z příjmů právnických osob | F8: 8600000 | G8: 9992189.5 | H8: 11200000 | I8: 116.19 | J8: 0 | K8: 0 | M8: 0
A9: 11 | D9: 1122 | E9: Daň z příjmů právnických osob za obce | F9: 746320 | G9: 746320 | I9: 100 | J9: 0 | K9: 0 | M9: 0
A10: 11 | D10: 1211 | E10: Daň z přidané hodnoty | F10: 26400000 | G10: 21321683.19 | H10: 28300000 | I10: 80.76 | J10: 0 | K10: 0 | M10: 0
A11: 11 | D11: 1334 | E11: Odvody za odnětí půdy ze zemědělského půdního fondu | F11: 2000 | G11: 0 | H11: 2000 | I11: 0 | J11: 0 | K11: 0 | M11: 0
A12: 11 | D12: 1335 | E12: Poplatky za odnětí pozemků plnění funkcí lesa | F12: 1000 | G12: 590 | H12: 1000 | I12: 59 | J12: 0 | K12: 0 | M12: 0
A13: 11 | D13: 1345 | E13: Poplatek za odpadové hospodářství a odkládání komunálního odpadu | F13: 1836000 | G13: 1822903.92 | H13: 1836000 | I13: 99.29 | J13: 0 | K13: 0 | M13: 0
A14: 11 | D14: 1341 | E14: Poplatek ze psů | F14: 95000 | G14: 87489 | H14: 95000 | I14: 92.09 | J14: 0 | K14: 0 | M14: 0
A15: 11 | D15: 1342 | E15: Poplatek z pobytu | F15: 180000 | G15: 126577 | H15: 200000 | I15: 70.32 | J15: 0 | K15: 0 | M15: 0
A16: 11 | D16: 1343 | E16: Poplatek za užívání veřejného prostranství | F16: 92000 | G16: 116750 | H16: 120000 | I16: 126.9 | J16: 0 | K16: 0 | M16: 0
A17: 11 | D17: 1381 | E17: Daň z hazardních her s výjimkou dílčí daně z technických her | F17: 300000 | G17: 301907.04 | H17: 400000 | I17: 100.64 | J17: 0 | K17: 0 | M17: 0
A18: 11 | D18: 1511 | E18: Daň z nemovitých věcí | F18: 3900000 | G18: 2849099.41 | H18: 3900000 | I18: 73.05 | J18: 0 | K18: 0 | M18: 0
A19: ORG | F19: 51362320 | G19: 45727453.98 | H19: =SUM(H5:H18) -> 56234000 | I19: 89.03 | J19: 0 | K19: 0 | M19: 0
A20: 11 | B20: 000001 | D20: 1361 | E20: Správní poplatky | F20: 40000 | G20: 31000 | H20: 40000 | I20: 77.5 | J20: 0 | K20: 0 | M20: 0
A21: ORG 000001 Sňatky | F21: 40000 | G21: 31000 | H21: =SUM(H20) -> 40000 | I21: 77.5 | J21: 0 | K21: 0 | M21: 0
A22: 11 | B22: 000002 | D22: 1361 | E22: Správní poplatky | F22: 3500 | G22: 3630 | H22: 3500 | I22: 103.71 | J22: 0 | K22: 0 | M22: 0
A23: ORG 000002 Trvalý pobyt | F23: 3500 | G23: 3630 | H23: =SUM(H22) -> 3500 | I23: 103.71 | J23: 0 | K23: 0 | M23: 0
A24: 11 | B24: 000003 | D24: 1361 | E24: Správní poplatky | F24: 10000 | G24: 10150 | H24: 10000 | I24: 101.5 | J24: 0 | K24: 0 | M24: 0
A25: ORG 000003 Ověřování listin a podpisů | F25: 10000 | G25: 10150 | H25: =SUM(H24) -> 10000 | I25: 101.5 | J25: 0 | K25: 0 | M25: 0
A26: 11 | B26: 000004 | D26: 1361 | E26: Správní poplatky | F26: 6000 | G26: 3800 | H26: 6000 | I26: 63.33 | J26: 0 | K26: 0 | M26: 0
A27: ORG 000004 CzechPOINT | F27: 6000 | G27: 3800 | H27: =SUM(H26) -> 6000 | I27: 63.33 | J27: 0 | K27: 0 | M27: 0
A28: 11 | B28: 000006 | D28: 1361 | E28: Správní poplatky | F28: 200000 | G28: 127900 | H28: 200000 | I28: 63.95 | J28: 0 | K28: 0 | M28: 0
A29: ORG 000006 Stav.povolení,kolaud.rozh. | F29: 200000 | G29: 127900 | H29: =SUM(H28) -> 200000 | I29: 63.95 | J29: 0 | K29: 0 | M29: 0
A30: 11 | B30: 000008 | D30: 1361 | E30: Správní poplatky | F30: 2000 | G30: 1000 | H30: 2000 | I30: 50 | J30: 0 | K30: 0 | M30: 0
A31: ORG 000008 Změna jména a příjmení | F31: 2000 | G31: 1000 | H31: =SUM(H30) -> 2000 | I31: 50 | J31: 0 | K31: 0 | M31: 0
A32: 11 | B32: 000009 | D32: 1361 | E32: Správní poplatky | F32: 1000 | G32: 840 | H32: 1000 | I32: 84 | J32: 0 | K32: 0 | M32: 0
A33: ORG 000009 Druhopisy matričních dokladů | F33: 1000 | G33: 840 | H33: =SUM(H32) -> 1000 | I33: 84 | J33: 0 | K33: 0 | M33: 0
A34: 11 | B34: 000010 | D34: 1361 | E34: Správní poplatky | F34: 1000 | G34: 100 | H34: 1000 | I34: 10 | J34: 0 | K34: 0 | M34: 0
A35: ORG 000010 Rušení údaje TP | F35: 1000 | G35: 100 | H35: =SUM(H34) -> 1000 | I35: 10 | J35: 0 | K35: 0 | M35: 0
A36: 11 | B36: 000011 | D36: 1361 | E36: Správní poplatky | F36: 1000 | G36: 0 | H36: 1000 | I36: 0 | J36: 0 | K36: 0 | M36: 0
A37: ORG 000011 Kolky - prodej pozemků | F37: 1000 | G37: 0 | H37: =SUM(H36) -> 1000 | I37: 0 | J37: 0 | K37: 0 | M37: 0
A38: 11 | B38: 000012 | D38: 1361 | E38: Správní poplatky | F38: 500 | G38: 50 | H38: 500 | I38: 10 | J38: 0 | K38: 0 | M38: 0
A39: ORG 000012 Potvrzení z IS | F39: 500 | G39: 50 | H39: =SUM(H38) -> 500 | I39: 10 | J39: 0 | K39: 0 | M39: 0
A40: 11 | B40: 000013 | D40: 1361 | E40: Správní poplatky | F40: 500 | G40: 0 | H40: 500 | I40: 0 | J40: 0 | K40: 0 | M40: 0
A41: ORG 000013 Vysvědčení o PZ | F41: 500 | G41: 0 | H41: =SUM(H40) -> 500 | I41: 0 | J41: 0 | K41: 0 | M41: 0
A42: 11 | B42: 000014 | D42: 1361 | E42: Správní poplatky | F42: 100 | G42: 0 | H42: 100 | I42: 0 | J42: 0 | K42: 0 | M42: 0
A43: ORG 000014 Nahlížení matrik | F43: 100 | G43: 0 | H43: =SUM(H42) -> 100 | I43: 0 | J43: 0 | K43: 0 | M43: 0
A44: ORJ 11 Daně | F44: 51627920 | G44: 45905923.98 | H44: =SUM(H19,H21,H23,H25,H27,H29,H31,H33,H35,H37,H39,H41,H43) -> 56499600 | I44: 88.92 | J44: 0 | K44: 0 | M44: 0
A45: 12 | D45: 4111 | E45: Neinvestiční přijaté transfery z všeobecné pokladní správy SR | F45: 673000 | G45: 701700.28 | H45: 600000 | I45: 104.26 | J45: 0 | K45: 0 | M45: 0
A46: 12 | D46: 4112 | E46: Neinvestiční přijaté transfery ze SR v rámci souhrnného dotačního vztahu | F46: 2205700 | G46: 1838083 | H46: 2242400 | I46: 83.33 | J46: 0 | K46: 0 | M46: 0
A47: ORG | F47: 2878700 | G47: 2539783.28 | H47: =SUM(H45:H46) -> 2842400 | I47: 88.23 | J47: 0 | K47: 0 | M47: 0
A48: ORJ 12 Dotace obcím | F48: 2878700 | G48: 2539783.28 | H48: =SUM(H47) -> 2842400 | I48: 88.23 | J48: 0 | K48: 0 | M48: 0
A49: 20 | B49: 002000 | C49: 2119 | D49: 2324 | E49: Přijaté nekapitálové příspěvky a náhrady | F49: 300000 | G49: 180000 | H49: 300000 | I49: 60 | J49: 0 | K49: 0 | M49: 0
A50: 20 | B50: 002000 | C50: 2119 | D50: 2343 | E50: Příjmy z dobíhajících úhrad dobývacího prostoru a z vydobytých nerostů | F50: 4500000 | G50: 2498368.84 | H50: 4500000 | I50: 55.51930756 | J50: 0 | K50: 0 | M50: 0
A51: 20 | B51: 002000 | C51: 2119 | D51: 5494 | E51: Neinvestiční transfery obyvatelstvu nemající charakter daru | F51: 0 | G51: 0 | I51: 0 | J51: 762550 | K51: 32540 | L51: 200000 | M51: 4.267261163
A52: 20 | B52: 002000 | C52: 2119 | D52: 5171 | E52: Opravy a udržování | F52: 0 | G52: 0 | I52: 0 | J52: 0 | K52: 0 | L52: 421567
A53: 20 | B53: 002000 | C53: 2119 | D53: 6122 | E53: Stroje, přístroje a zařízení | F53: 0 | G53: 0 | I53: 0 | J53: 200000 | K53: 168200.06 | M53: 84.10003
A54: ORG 002000 Úhrady za dobývací činnost | F54: 4800000 | G54: 2678368.84 | H54: =SUM(H49:H50) -> 4800000 | I54: 55.8 | J54: 962550 | K54: 200740.06 | L54: =SUM(L51:L53) -> 621567 | M54: 20.86 | N54: komentář
A55: 20 | B55: 002010 | C55: 3419 | D55: 5222 | E55: Neinvestiční transfery spolkům | F55: 0 | G55: 0 | I55: 0 | J55: 212000 | K55: 212000 | L55: 210000 | M55: 100
A56: ORG 002010 Příspěvky sportovním klubům | F56: 0 | G56: 0 | I56: 0 | J56: 212000 | K56: 212000 | L56: =SUM(L55) -> 210000 | M56: 100
A57: 20 | B57: 002020 | C57: 3429 | D57: 5222 | E57: Neinvestiční transfery spolkům | F57: 0 | G57: 0 | I57: 0 | J57: 210000 | K57: 117800 | L57: 210000 | M57: 56.0952381
A58: ORG 002020 Příspěvky spolkům - zájmová činnost | F58: 0 | G58: 0 | I58: 0 | J58: 210000 | K58: 117800 | L58: =SUM(L57) -> 210000 | M58: 56.1
A59: 20 | B59: 002021 | C59: 2143 | D59: 5169 | E59: Nákup ostatních služeb | F59: 0 | G59: 0 | I59: 0 | J59: 10000 | K59: 0 | M59: 0
A60: 20 | B60: 002021 | C60: 2143 | D60: 5222 | E60: Neinvestiční transfery spolkům | F60: 0 | G60: 0 | I60: 0 | J60: 25000 | K60: 0 | L60: 35000 | M60: 0
A61: ORG 002021 Podpora marketingu akcí ve městě | F61: 0 | G61: 0 | I61: 0 | J61: 35000 | K61: 0 | L61: =SUM(L59:L60) -> 35000 | M61: 0
A62: 20 | B62: 002030 | C62: 3421 | D62: 5222 | E62: Neinvestiční transfery spolkům | F62: 0 | G62: 0 | I62: 0 | J62: 150000 | K62: 150000 | L62: 150000 | M62: 100
A63: ORG 002030 DDM-příspěvek | F63: 0 | G63: 0 | I63: 0 | J63: 150000 | K63: 150000 | L63: =SUM(L62) -> 150000 | M63: 100
A64: 20 | B64: 002040 | C64: 5311 | D64: 5321 | E64: Neinvestiční transfery obcím | F64: 0 | G64: 0 | I64: 0 | J64: 1960000 | K64: 1960000 | L64: 1960000 | M64: 100
A65: ORG 002040 Městská policie | F65: 0 | G65: 0 | I65: 0 | J65: 1960000 | K65: 1960000 | L65: =SUM(L64) -> 1960000 | M65: 100
A66: 20 | B66: 002050 | D66: 4116 | E66: Ostatní neinvestiční přijaté transfery ze státního rozpočtu | F66: 150000 | G66: 150000 | H66: 150000 | I66: 100 | J66: 0 | K66: 0 | M66: 0
A67: 20 | B67: 002050 | D67: 4122 | E67: Neinvestiční přijaté transfery od krajů | F67: 50000 | G67: 50000 | H67: 50000 | I67: 100 | J67: 0 | K67: 0 | M67: 0
A68: 20 | B68: 002050 | C68: 5512 | D68: 2322 | E68: Přijaté pojistné náhrady | F68: 52305 | G68: 52305 | I68: 100 | J68: 0 | K68: 0 | M68: 0
A69: 20 | B69: 002050 | C69: 5512 | D69: 5019 | E69: Ostatní platy | F69: 0 | G69: 0 | I69: 0 | J69: 3000 | K69: 0 | M69: 0
A70: 20 | B70: 002050 | C70: 5512 | D70: 5021 | E70: Ostatní osobní výdaje | F70: 0 | G70: 0 | I70: 0 | J70: 490000 | K70: 401938 | L70: 490000 | M70: 82.03
A71: 20 | B71: 002050 | C71: 5512 | D71: 5039 | E71: Ostatní povinné pojistné placené zaměstnavatelem | F71: 0 | G71: 0 | I71: 0 | J71: 1000 | K71: 0 | L71: 1000 | M71: 0
A72: 20 | B72: 002050 | C72: 5512 | D72: 5134 | E72: Prádlo, oděv a obuv | F72: 0 | G72: 0 | I72: 0 | J72: 40000 | K72: 0 | L72: 1000 | M72: 0
A73: 20 | B73: 002050 | C73: 5512 | D73: 5136 | E73: Knihy, učební pomůcky a tisk | F73: 0 | G73: 0 | I73: 0 | J73: 1000 | K73: 300 | L73: 1000 | M73: 30
A74: 20 | B74: 002050 | C74: 5512 | D74: 5137 | E74: Drobný dlouhodobý hmotný majetek | F74: 0 | G74: 0 | I74: 0 | J74: 10000 | K74: 0 | L74: 10000 | M74: 0
A75: 20 | B75: 002050 | C75: 5512 | D75: 5139 | E75: Nákup materiálu j.n. | F75: 0 | G75: 0 | I75: 0 | J75: 12000 | K75: 10872 | L75: 12000 | M75: 90.6
A76: 20 | B76: 002050 | C76: 5512 | D76: 5151 | E76: Studená voda | F76: 0 | G76: 0 | I76: 0 | J76: 3000 | K76: 361.6 | L76: 2000 | M76: 12.05
A77: 20 | B77: 002050 | C77: 5512 | D77: 5153 | E77: Plyn | F77: 0 | G77: 0 | I77: 0 | J77: 30000 | K77: 19047.11 | L77: 25000 | M77: 63.49
A78: 20 | B78: 002050 | C78: 5512 | D78: 5154 | E78: Elektrická energie | F78: 0 | G78: 0 | I78: 0 | J78: 15000 | K78: 9110.81 | L78: 25000 | M78: 60.74
A79: 20 | B79: 002050 | C79: 5512 | D79: 5156 | E79: Pohonné hmoty a maziva | F79: 0 | G79: 0 | I79: 0 | J79: 26000 | K79: 11573.95 | L79: 25000 | M79: 44.52
A80: 20 | B80: 002050 | C80: 5512 | D80: 5161 | E80: Poštovní služby | F80: 0 | G80: 0 | I80: 0 | J80: 200 | K80: 0 | L80: 1000 | M80: 0
A81: 20 | B81: 002050 | C81: 5512 | D81: 5162 | E81: Služby elektronických komunikací | F81: 0 | G81: 0 | I81: 0 | J81: 3000 | K81: 2729 | L81: 3000 | M81: 90.97
A82: 20 | B82: 002050 | C82: 5512 | D82: 5163 | E82: Služby peněžních ústavů | F82: 0 | G82: 0 | I82: 0 | J82: 40000 | K82: 55567 | L82: 42000 | M82: 138.92
A83: 20 | B83: 002050 | C83: 5512 | D83: 5164 | E83: Nájemné | F83: 0 | G83: 0 | I83: 0 | J83: 1000 | K83: 484 | L83: 1000 | M83: 48.4
A84: 20 | B84: 002050 | C84: 5512 | D84: 5167 | E84: Služby školení a vzdělávání | F84: 0 | G84: 0 | I84: 0 | J84: 24000 | K84: 0 | L84: 24000 | M84: 0
A85: 20 | B85: 002050 | C85: 5512 | D85: 5169 | E85: Nákup ostatních služeb | F85: 0 | G85: 0 | I85: 0 | J85: 6000 | K85: 1100 | L85: 6000 | M85: 18.33333333
A86: 20 | B86: 002050 | C86: 5512 | D86: 5171 | E86: Opravy a udržování | F86: 0 | G86: 0 | I86: 0 | J86: 60000 | K86: 57301.93 | L86: 60000 | M86: 95.50321667
A87: ORG 002050 JPO II | F87: 252305 | G87: 252305 | H87: =SUM(H66:H68) -> 200000 | I87: 100 | J87: 765200 | K87: 570385.4 | L87: =SUM(L70:L86) -> 729000 | M87: 74.54
A88: ORJ 20 Starosta | F88: 5052305 | G88: 2930673.84 | H88: =SUM(H54,H87) -> 5000000 | I88: 58.01 | J88: 4294750 | K88: 3220484.46 | L88: =SUM(L54,L56,L58,L61,L63,L65,L87) -> 3915567 | M88: 74.99
A89: 21 | B89: 002110 | C89: 5212 | D89: 5139 | E89: Nákup materiálu j.n. | F89: 0 | G89: 0 | I89: 0 | J89: 1000 | K89: 0 | L89: 1000 | M89: 0
A90: 21 | B90: 002110 | C90: 5212 | D90: 5171 | E90: Opravy a udržování | F90: 0 | G90: 0 | I90: 0 | J90: 5000 | K90: 0 | L90: 5000 | M90: 0
A91: ORG 002110 Civilní obrana | F91: 0 | G91: 0 | I91: 0 | J91: 6000 | K91: 0 | L91: =SUM(L89:L90) -> 6000 | M91: 0
A92: 21 | B92: 002120 | C92: 6171 | D92: 5139 | E92: Nákup materiálu j.n. | F92: 0 | G92: 0 | I92: 0 | J92: 14000 | K92: 12218 | L92: 14000 | M92: 87.27142857
A93: 21 | B93: 002120 | C93: 6171 | D93: 5169 | E93: Nákup ostatních služeb | F93: 0 | G93: 0 | I93: 0 | J93: 1000 | K93: 830 | L93: 1000 | M93: 83
A94: 21 | B94: 002120 | C94: 6171 | D94: 5175 | E94: Pohoštění | F94: 0 | G94: 0 | I94: 0 | J94: 10000 | K94: 2766 | L94: 8000 | M94: 27.66
A95: 21 | B95: 002120 | C95: 6171 | D95: 5194 | E95: Věcné dary | F95: 0 | G95: 0 | I95: 0 | J95: 15000 | K95: 19680 | L95: 17000 | M95: 131.2
A96: ORG 002120 Reprefond | F96: 0 | G96: 0 | I96: 0 | J96: 40000 | K96: 35494 | L96: =SUM(L92:L95) -> 40000 | M96: 88.74
A97: ORJ 21 Sekretariát starosty | F97: 0 | G97: 0 | I97: 0 | J97: 46000 | K97: 35494 | L97: =SUM(L91,L96) -> 46000 | M97: 77.16
A98: 23 | B98: 002310 | C98: 2141 | D98: 2111 | E98: Příjmy z poskytování služeb a výrobků | F98: 500 | G98: 282 | H98: 500 | I98: 56.4 | J98: 0 | K98: 0 | M98: 0
A99: 23 | B99: 002310 | C99: 2141 | D99: 2112 | E99: Příjmy z prodeje zboží (již nakoupeného za účelem prodeje) | F99: 75000 | G99: 91317 | H99: 90000 | I99: 121.76 | J99: 0 | K99: 0 | M99: 0
A100: 23 | B100: 002310 | C100: 2141 | D100: 5011 | E100: Platy zaměstnanců v pracovním poměru | F100: 0 | G100: 0 | I100: 0 | J100: 426556 | K100: 305571 | L100: 461000 | M100: 71.64
A101: 23 | B101: 002310 | C101: 2141 | D101: 5021 | E101: Ostatní osobní výdaje | F101: 0 | G101: 0 | I101: 0 | J101: 50000 | K101: 17490 | L101: 50000 | M101: 34.98
A102: 23 | B102: 002310 | C102: 2141 | D102: 5031 | E102: Povinné pojistné na sociální zabezpečení a příspěvek na státní politiku zamě | F102: 0 | G102: 0 | I102: 0 | J102: 109000 | K102: 75783 | L102: 116000 | M102: 69.53
A103: 23 | B103: 002310 | C103: 2141 | D103: 5032 | E103: Povinné pojištění na veřejné zdravotní pojištění | F103: 0 | G103: 0 | I103: 0 | J103: 39500 | K103: 27500 | L103: 42000 | M103: 69.62
A104: 23 | B104: 002310 | C104: 2141 | D104: 5137 | E104: Drobný dlouhodobý hmotný majetek | F104: 0 | G104: 0 | I104: 0 | J104: 5000 | K104: 2326.21 | L104: 5000 | M104: 46.52
A105: 23 | B105: 002310 | C105: 2141 | D105: 5138 | E105: Nákup zboží (za účelem dalšího prodeje) | F105: 0 | G105: 0 | I105: 0 | J105: 80000 | K105: 39239.34 | L105: 65000 | M105: 49.05
A106: 23 | B106: 002310 | C106: 2141 | D106: 5139 | E106: Nákup materiálu j.n. | F106: 0 | G106: 0 | I106: 0 | J106: 10000 | K106: 6010 | L106: 10000 | M106: 60.1
A107: 23 | B107: 002310 | C107: 2141 | D107: 5161 | E107: Poštovní služby | F107: 0 | G107: 0 | I107: 0 | J107: 500 | K107: 100 | L107: 500 | M107: 20
A108: 23 | B108: 002310 | C108: 2141 | D108: 5162 | E108: Služby elektronických komunikací | F108: 0 | G108: 0 | I108: 0 | J108: 3000 | K108: 2203.59 | L108: 3000 | M108: 73.45
A109: 23 | B109: 002310 | C109: 2141 | D109: 5167 | E109: Služby školení a vzdělávání | F109: 0 | G109: 0 | I109: 0 | J109: 5000 | K109: 0 | L109: 5000 | M109: 0
A110: 23 | B110: 002310 | C110: 2141 | D110: 5168 | E110: Zpracování dat a služby související s informačními a komunikačnímni technol | F110: 0 | G110: 0 | I110: 0 | J110: 0 | K110: 2012
A111: 23 | B111: 002310 | C111: 2141 | D111: 5169 | E111: Nákup ostatních služeb | F111: 0 | G111: 0 | I111: 0 | J111: 34500 | K111: 17475.8 | L111: 34500 | M111: 50.65
A112: 23 | B112: 002310 | C112: 2141 | D112: 5171 | E112: Opravy a udržování | F112: 0 | G112: 0 | I112: 0 | J112: 5000 | K112: 0 | L112: 5000 | M112: 0
A113: 23 | B113: 002310 | C113: 2141 | D113: 5173 | E113: Cestovné | F113: 0 | G113: 0 | I113: 0 | J113: 1000 | K113: 108 | L113: 1000 | M113: 10.8
A114: 23 | B114: 002310 | C114: 2141 | D114: 5175 | E114: Pohoštění | F114: 0 | G114: 0 | I114: 0 | J114: 500 | K114: 0 | L114: 500 | M114: 0
A115: 23 | B115: 002310 | C115: 2141 | D115: 5179 | E115: Ostatní nákupy jinde nezařazené | F115: 0 | G115: 0 | I115: 0 | J115: 5000 | K115: 4500 | L115: 5000 | M115: 90
A116: 23 | B116: 002310 | C116: 2141 | D116: 5424 | E116: Náhrady mezd v době nemoci | F116: 0 | G116: 0 | I116: 0 | J116: 8044 | K116: 8044 | M116: 100
A117: ORG 002310 MIC (Městské informační centrum) | F117: 75500 | G117: 91599 | H117: =SUM(H98:H99) -> 90500 | I117: 121.32 | J117: 782600 | K117: 508362.94 | L117: =SUM(L100:L116) -> 803500 | M117: 64.96
A118: 23 | B118: 002312 | D118: 4122 | E118: Neinvestiční přijaté transfery od krajů | F118: 120000 | G118: 60000 | I118: 50 | J118: 0 | K118: 0 | M118: 0
A119: 23 | B119: 002312 | C119: 2141 | D119: 5137 | E119: Drobný dlouhodobý hmotný majetek | F119: 0 | G119: 0 | I119: 0 | J119: 126000 | K119: 124843 | M119: 99.08
A120: 23 | B120: 002312 | C120: 2141 | D120: 5139 | E120: Nákup materiálu j.n. | F120: 0 | G120: 0 | I120: 0 | J120: 0 | K120: 18317
A121: 23 | B121: 002312 | C121: 2141 | D121: 5161 | E121: Poštovní služby | F121: 0 | G121: 0 | I121: 0 | J121: 0 | K121: 140 | M121: 0
A122: 23 | B122: 002312 | C122: 2141 | D122: 5168 | E122: Zpracování dat a služby související s informačními a komunikačnímni technol | F122: 0 | G122: 0 | I122: 0 | J122: 0 | K122: 6700
A123: 23 | B123: 002312 | C123: 2141 | D123: 5169 | E123: Nákup ostatních služeb | F123: 0 | G123: 0 | I123: 0 | J123: 24000 | K123: 0 | M123: 0
A124: ORG 002312 MIC-dotace (TIC) | F124: 120000 | G124: 60000 | H124: =SUM(H118) -> 0 | I124: 50 | J124: 150000 | K124: 150000 | L124: =SUM(L119:L123) -> 0 | M124: 100
A125: 23 | B125: 002320 | C125: 2143 | D125: 5021 | E125: Ostatní osobní výdaje | F125: 0 | G125: 0 | I125: 0 | J125: 5000 | K125: 0 | L125: 5000 | M125: 0
A126: 23 | B126: 002320 | C126: 2143 | D126: 5137 | E126: Drobný dlouhodobý hmotný majetek | F126: 0 | G126: 0 | I126: 0 | J126: 20000 | K126: 14520 | L126: 10000 | M126: 72.6
A127: 23 | B127: 002320 | C127: 2143 | D127: 5139 | E127: Nákup materiálu j.n. | F127: 0 | G127: 0 | I127: 0 | J127: 170000 | K127: 49732.36 | L127: 150000 | M127: 29.25
A128: 23 | B128: 002320 | C128: 2143 | D128: 5161 | E128: Poštovní služby | F128: 0 | G128: 0 | I128: 0 | J128: 0 | K128: 73 | L128: 100 | M128: 0
A129: 23 | B129: 002320 | C129: 2143 | D129: 5162 | E129: Služby elektronických komunikací | F129: 0 | G129: 0 | I129: 0 | J129: 1000 | K129: 0 | L129: 900 | M129: 0
A130: 23 | B130: 002320 | C130: 2143 | D130: 5169 | E130: Nákup ostatních služeb | F130: 0 | G130: 0 | I130: 0 | J130: 338000 | K130: 296275 | L130: 260000 | M130: 87.66
A131: 23 | B131: 002320 | C131: 2143 | D131: 5171 | E131: Opravy a udržování | F131: 0 | G131: 0 | I131: 0 | J131: 6000 | K131: 0 | L131: 4000 | M131: 0
A132: ORG 002320 Propagace | F132: 0 | G132: 0 | I132: 0 | J132: 540000 | K132: 360600.36 | L132: =SUM(L125:L131) -> 430000 | M132: 66.78
A133: 23 | B133: 002330 | C133: 3349 | D133: 2111 | E133: Příjmy z poskytování služeb a výrobků | F133: 26000 | G133: 34039 | H133: 30000 | I133: 130.92 | J133: 0 | K133: 0 | M133: 0
A134: 23 | B134: 002330 | C134: 3349 | D134: 2119 | E134: Ostatní příjmy z vlastní činnosti | F134: 2000 | G134: 0 | H134: 2000 | I134: 0 | J134: 0 | K134: 0 | M134: 0
A135: 23 | B135: 002330 | C135: 3349 | D135: 5021 | E135: Ostatní osobní výdaje | F135: 0 | G135: 0 | I135: 0 | J135: 20000 | K135: 12400 | L135: 30000 | M135: 62
A136: 23 | B136: 002330 | C136: 3349 | D136: 5169 | E136: Nákup ostatních služeb | F136: 0 | G136: 0 | I136: 0 | J136: 210000 | K136: 168615 | L136: 210000 | M136: 80.29
A137: ORG 002330 Štramberské novinky | F137: 28000 | G137: 34039 | H137: =SUM(H133:H134) -> 32000 | I137: 12.57 | J137: 230000 | K137: 181015 | L137: =SUM(L135:L136) -> 240000 | M137: 78.7
A138: 23 | B138: 002450 | C138: 3313 | D138: 2111 | E138: Příjmy z poskytování služeb a výrobků | F138: 67000 | G138: 67680 | H138: 67000 | I138: 101.01 | J138: 0 | K138: 0 | M138: 0
A139: 23 | B139: 002450 | C139: 3313 | D139: 5021 | E139: Ostatní osobní výdaje | F139: 0 | G139: 0 | I139: 0 | J139: 40000 | K139: 26593 | L139: 40000 | M139: 66.48
A140: 23 | B140: 002450 | C140: 3313 | D140: 5041 | E140: Odměny za užití duševního vlastnictví | F140: 0 | G140: 0 | I140: 0 | J140: 1000 | K140: 7.63 | L140: 500 | M140: 0.763
A141: 23 | B141: 002450 | C141: 3313 | D141: 5137 | E141: Drobný dlouhodobý hmotný majetek | F141: 0 | G141: 0 | I141: 0 | J141: 15000 | K141: 0 | L141: 15000 | M141: 0
A142: 23 | B142: 002450 | C142: 3313 | D142: 5139 | E142: Nákup materiálu j.n. | F142: 0 | G142: 0 | I142: 0 | J142: 3000 | K142: 0 | L142: 3000 | M142: 0
A143: 23 | B143: 002450 | C143: 3313 | D143: 5162 | E143: Služby elektronických komunikací | F143: 0 | G143: 0 | I143: 0 | J143: 500 | K143: 230 | L143: 500 | M143: 46
A144: 23 | B144: 002450 | C144: 3313 | D144: 5169 | E144: Nákup ostatních služeb | F144: 0 | G144: 0 | I144: 0 | J144: 70000 | K144: 54405.23 | L144: 70000 | M144: 77.72
A145: 23 | B145: 002450 | C145: 3313 | D145: 5171 | E145: Opravy a udržování | F145: 0 | G145: 0 | I145: 0 | J145: 10000 | K145: 0 | L145: 10000 | M145: 0
A146: ORG 002450 Kino | F146: 67000 | G146: 67680 | H146: =SUM(H138) -> 67000 | I146: 101.01 | J146: 139500 | K146: 81235.86 | L146: =SUM(L139:L145) -> 139000 | M146: 58.23
A147: 23 | B147: 002460 | C147: 3314 | D147: 2111 | E147: Příjmy z poskytování služeb a výrobků | F147: 17000 | G147: 14871 | H147: 17000 | I147: 87.48 | J147: 0 | K147: 0 | M147: 0
A148: 23 | B148: 002460 | C148: 3314 | D148: 5011 | E148: Platy zaměstnanců v pracovním poměru | F148: 0 | G148: 0 | I148: 0 | J148: 368000 | K148: 226876 | L148: 392000 | M148: 61.65
A149: 23 | B149: 002460 | C149: 3314 | D149: 5031 | E149: Povinné pojistné na sociální zabezpečení a příspěvek na státní politiku zamě | F149: 0 | G149: 0 | I149: 0 | J149: 92000 | K149: 56263 | L149: 98000 | M149: 61.16
A150: 23 | B150: 002460 | C150: 3314 | D150: 5032 | E150: Povinné pojištění na veřejné zdravotní pojištění | F150: 0 | G150: 0 | I150: 0 | J150: 34000 | K150: 20419 | L150: 36000 | M150: 60.06
A151: 23 | B151: 002460 | C151: 3314 | D151: 5136 | E151: Knihy, učební pomůcky a tisk | F151: 0 | G151: 0 | I151: 0 | J151: 100000 | K151: 42548 | L151: 100000 | M151: 42.55
A152: 23 | B152: 002460 | C152: 3314 | D152: 5137 | E152: Drobný dlouhodobý hmotný majetek | F152: 0 | G152: 0 | I152: 0 | J152: 50000 | K152: 2897 | L152: 50000 | M152: 5.794
A153: 23 | B153: 002460 | C153: 3314 | D153: 5139 | E153: Nákup materiálu j.n. | F153: 0 | G153: 0 | I153: 0 | J153: 15000 | K153: 6719 | L153: 15000 | M153: 44.79333333
A154: 23 | B154: 002460 | C154: 3314 | D154: 5161 | E154: Poštovní služby | F154: 0 | G154: 0 | I154: 0 | J154: 500 | K154: 0 | L154: 500 | M154: 0
A155: 23 | B155: 002460 | C155: 3314 | D155: 5162 | E155: Služby elektronických komunikací | F155: 0 | G155: 0 | I155: 0 | J155: 5000 | K155: 2050.2 | L155: 3000 | M155: 41
A156: 23 | B156: 002460 | C156: 3314 | D156: 5167 | E156: Služby školení a vzdělávání | F156: 0 | G156: 0 | I156: 0 | J156: 3000 | K156: 0 | L156: 5000 | M156: 0
A157: 23 | B157: 002460 | C157: 3314 | D157: 5168 | E157: Zpracování dat a služby související s informačními a komunikačnímni technol | F157: 0 | G157: 0 | I157: 0 | J157: 10000 | K157: 25682 | L157: 25000 | M157: 256.82
A158: 23 | B158: 002460 | C158: 3314 | D158: 5169 | E158: Nákup ostatních služeb | F158: 0 | G158: 0 | I158: 0 | J158: 30000 | K158: 5600 | L158: 15000 | M158: 18.67
A159: 23 | B159: 002460 | C159: 3314 | D159: 5171 | E159: Opravy a udržování | F159: 0 | G159: 0 | I159: 0 | J159: 10000 | K159: 1512 | L159: 10000 | M159: 15.12
A160: 23 | B160: 002460 | C160: 3314 | D160: 5172 | E160: Programové vybavení | F160: 0 | G160: 0 | I160: 0 | J160: 3000 | K160: 0 | L160: 3000 | M160: 0
A161: 23 | B161: 002460 | C161: 3314 | D161: 5173 | E161: Cestovné | F161: 0 | G161: 0 | I161: 0 | J161: 2500 | K161: 350 | L161: 1000 | M161: 14
A162: 23 | B162: 002460 | C162: 3314 | D162: 5175 | E162: Pohoštění | F162: 0 | G162: 0 | I162: 0 | J162: 2000 | K162: 211 | L162: 2000 | M162: 10.55
A163: 23 | B163: 002460 | C163: 3314 | D163: 5179 | E163: Ostatní nákupy jinde nezařazené | F163: 0 | G163: 0 | I163: 0 | J163: 1000 | K163: 550 | L163: 1000 | M163: 55
A164: 23 | B164: 002460 | C164: 3314 | D164: 5194 | E164: Věcné dary | F164: 0 | G164: 0 | I164: 0 | J164: 3000 | K164: 0 | L164: 3000 | M164: 0
A165: 23 | B165: 002460 | C165: 3314 | D165: 5494 | E165: Neinvestiční transfery obyvatelstvu nemající charakter daru | F165: 0 | G165: 0 | I165: 0 | J165: 2000 | K165: 380 | L165: 2000 | M165: 19
A166: ORG 002460 Městská knihovna | F166: 17000 | G166: 14871 | H166: =SUM(H147) -> 17000 | I166: 87.48 | J166: 731000 | K166: 392057.2 | L166: =SUM(L148:L165) -> 761500 | M166: 53.63
A167: 23 | B167: 002470 | C167: 3315 | D167: 2111 | E167: Příjmy z poskytování služeb a výrobků | F167: 120000 | G167: 127240 | H167: 125000 | I167: 106.03 | J167: 0 | K167: 0 | M167: 0
A168: 23 | B168: 002470 | C168: 3315 | D168: 2112 | E168: Příjmy z prodeje zboží (již nakoupeného za účelem prodeje) | F168: 110000 | G168: 85942 | H168: 110000 | I168: 78.13 | J168: 0 | K168: 0 | M168: 0
A169: 23 | B169: 002470 | C169: 3315 | D169: 5011 | E169: Platy zaměstnanců v pracovním poměru | F169: 0 | G169: 0 | I169: 0 | J169: 435000 | K169: 322594 | L169: 452000 | M169: 74.16
A170: 23 | B170: 002470 | C170: 3315 | D170: 5021 | E170: Ostatní osobní výdaje | F170: 0 | G170: 0 | I170: 0 | J170: 80000 | K170: 47218 | L170: 80000 | M170: 59.02
A171: 23 | B171: 002470 | C171: 3315 | D171: 5031 | E171: Povinné pojistné na sociální zabezpečení a příspěvek na státní politiku zamě | F171: 0 | G171: 0 | I171: 0 | J171: 110000 | K171: 80003 | L171: 113000 | M171: 72.73
A172: 23 | B172: 002470 | C172: 3315 | D172: 5032 | E172: Povinné pojištění na veřejné zdravotní pojištění | F172: 0 | G172: 0 | I172: 0 | J172: 40000 | K172: 29032 | L172: 41000 | M172: 72.58
A173: 23 | B173: 002470 | C173: 3315 | D173: 5136 | E173: Knihy, učební pomůcky a tisk | F173: 0 | G173: 0 | I173: 0 | J173: 1000 | K173: 0 | L173: 1000 | M173: 0
A174: 23 | B174: 002470 | C174: 3315 | D174: 5137 | E174: Drobný dlouhodobý hmotný majetek | F174: 0 | G174: 0 | I174: 0 | J174: 79000 | K174: 0 | L174: 40000 | M174: 0
A175: 23 | B175: 002470 | C175: 3315 | D175: 5138 | E175: Nákup zboží (za účelem dalšího prodeje) | F175: 0 | G175: 0 | I175: 0 | J175: 130000 | K175: 59684.68 | L175: 90000 | M175: 45.91
A176: 23 | B176: 002470 | C176: 3315 | D176: 5139 | E176: Nákup materiálu j.n. | F176: 0 | G176: 0 | I176: 0 | J176: 10000 | K176: 5407 | L176: 10000 | M176: 54.07
A177: 23 | B177: 002470 | C177: 3315 | D177: 5151 | E177: Studená voda | F177: 0 | G177: 0 | I177: 0 | J177: 10000 | K177: 5843.23 | L177: 10000 | M177: 58.43
A178: 23 | B178: 002470 | C178: 3315 | D178: 5154 | E178: Elektrická energie | F178: 0 | G178: 0 | I178: 0 | J178: 120000 | K178: 110020.95 | L178: 240000 | M178: 91.68
A179: 23 | B179: 002470 | C179: 3315 | D179: 5161 | E179: Poštovní služby | F179: 0 | G179: 0 | I179: 0 | J179: 100 | K179: 149 | L179: 100 | M179: 149
A180: 23 | B180: 002470 | C180: 3315 | D180: 5162 | E180: Služby elektronických komunikací | F180: 0 | G180: 0 | I180: 0 | J180: 4400 | K180: 2142 | L180: 3000 | M180: 48.69
A181: 23 | B181: 002470 | C181: 3315 | D181: 5163 | E181: Služby peněžních ústavů | F181: 0 | G181: 0 | I181: 0 | J181: 30000 | K181: 0 | L181: 20000 | M181: 0
A182: 23 | B182: 002470 | C182: 3315 | D182: 5168 | E182: Zpracování dat a služby související s informačními a komunikačnímni technol | F182: 0 | G182: 0 | I182: 0 | J182: 0 | K182: 7139
A183: 23 | B183: 002470 | C183: 3315 | D183: 5169 | E183: Nákup ostatních služeb | F183: 0 | G183: 0 | I183: 0 | J183: 30000 | K183: 17467.7 | L183: 30000 | M183: 58.23
A184: 23 | B184: 002470 | C184: 3315 | D184: 5171 | E184: Opravy a udržování | F184: 0 | G184: 0 | I184: 0 | J184: 30000 | K184: 12818.74 | L184: 30000 | M184: 42.72913333
A185: 23 | B185: 002470 | C185: 3315 | D185: 5173 | E185: Cestovné | F185: 0 | G185: 0 | I185: 0 | J185: 7000 | K185: 0 | L185: 1000 | M185: 0
A186: 23 | B186: 002470 | C186: 3315 | D186: 5175 | E186: Pohoštění | F186: 0 | G186: 0 | I186: 0 | J186: 5000 | K186: 999.35 | L186: 5000 | M186: 19.99
A187: 23 | B187: 002470 | C187: 3315 | D187: 6122 | E187: Stroje, přístroje a zařízení | F187: 0 | G187: 0 | I187: 0 | J187: 90000 | K187: 89483.13 | M187: 99.4257
A188: ORG 002470 Muzeum Zdeňka Buriana | F188: 230000 | G188: 213182 | H188: =SUM(H167:H168) -> 235000 | I188: 92.69 | J188: 1211500 | K188: 790001.98 | L188: =SUM(L169:L187) -> 1166100 | M188: 65.21
A189: 23 | B189: 002472 | C189: 3315 | D189: 2111 | E189: Příjmy z poskytování služeb a výrobků | F189: 0 | G189: 4845 | H189: 5000 | I189: 0 | J189: 0 | K189: 0 | M189: 0
A190: ORG 002472 Městská galerie | F190: 0 | G190: 4845 | H190: =SUM(H189) -> 5000 | I190: 0 | J190: 0 | K190: 0 | M190: 0
A191: 23 | B191: 002480 | C191: 3319 | D191: 2111 | E191: Příjmy z poskytování služeb a výrobků | F191: 110000 | G191: 44564 | H191: 110000 | I191: 40.51 | J191: 0 | K191: 0 | M191: 0
A192: 23 | B192: 002480 | C192: 3319 | D192: 2112 | E192: Příjmy z prodeje zboží (již nakoupeného za účelem prodeje) | F192: 10000 | G192: 4990 | H192: 7000 | I192: 49.9 | J192: 0 | K192: 0 | M192: 0
A193: 23 | B193: 002480 | C193: 3319 | D193: 2321 | E193: Přijaté neinvestiční dary | F193: 10000 | G193: 10000 | I193: 100 | J193: 0 | K193: 0 | M193: 0
A194: 23 | B194: 002480 | C194: 3319 | D194: 5021 | E194: Ostatní osobní výdaje | F194: 0 | G194: 0 | I194: 0 | J194: 50000 | K194: 57384 | L194: 60000 | M194: 114.77
A195: 23 | B195: 002480 | C195: 3319 | D195: 5041 | E195: Odměny za užití duševního vlastnictví | F195: 0 | G195: 0 | I195: 0 | J195: 25000 | K195: 0 | L195: 25000 | M195: 0
A196: 23 | B196: 002480 | C196: 3319 | D196: 5137 | E196: Drobný dlouhodobý hmotný majetek | F196: 0 | G196: 0 | I196: 0 | J196: 20000 | K196: 0 | L196: 20000 | M196: 0
A197: 23 | B197: 002480 | C197: 3319 | D197: 5138 | E197: Nákup zboží (za účelem dalšího prodeje) | F197: 0 | G197: 0 | I197: 0 | J197: 15000 | K197: 1402 | L197: 15000 | M197: 9.346666667
A198: 23 | B198: 002480 | C198: 3319 | D198: 5139 | E198: Nákup materiálu j.n. | F198: 0 | G198: 0 | I198: 0 | J198: 60000 | K198: 14664.06 | L198: 50000 | M198: 24.4401
A199: 23 | B199: 002480 | C199: 3319 | D199: 5169 | E199: Nákup ostatních služeb | F199: 0 | G199: 0 | I199: 0 | J199: 588900 | K199: 493285 | L199: 500000 | M199: 83.76
A200: 23 | B200: 002480 | C200: 3319 | D200: 5175 | E200: Pohoštění | F200: 0 | G200: 0 | I200: 0 | J200: 50000 | K200: 59431.63 | L200: 50000 | M200: 118.86
... 677 more rows

Sheet VerejneWC (hidden)
A1: ORG 003553 Veřejné WC
G4: Zpět na seznam rozpočtu
B6: Komentář: | D6: pol. 5169 - pronájem mobilních WC a úklid veřejných WC extérní firmou

Sheet ToulaveKocky (hidden)
A1: ORG 006640 Toulavé kočky
G4: Zpět na seznam rozpočtu
B6: Komentář: | D6: pol. 5222 - kastrace toulavých koček

Sheet Odm.TridenyOdpad (hidden)
A1: ORG 006605 Odměna za tříděný odpad
G4: Zpět na seznam rozpočtu
B6: Komentář: | D6: pol. 2324 - navýšení vytříděnosti komodit (stejné hodnoty dosaženo v 2021)

Sheet NakladaniKom.Odpad (hidden)
A1: ORG 006600 Nakládání s komunálním odpadem
G4: Zpět na seznam rozpočtu
B6: Komentář: | D6: pol. 5168 - čtvrtletní licence ECONIT (16.490,-)

Sheet ZSSTRAMBERK (hidden)
A1: ORG 006430 ZŠ Štramberk
G4: Zpět na seznam rozpočtu
B6: Komentář: | D6: pol. 5331 - 2.253 tis.Kč provoz+210 tis.Kč prac.sešity+130 tis.Kč aktivity školy + 135 tis.Kč výtv.potřeby

Sheet Fin.Oddeleni (hidden)
A1: ORG 006501 Finanční oddělení
G4: Zpět na seznam rozpočtu
B6: Komentář: | D6: pol. 5011, 5031, 5032 - vedoucí FO - 6 měsíců

Sheet Stav.Urad (hidden)
A1: ORG 006701 Stavební úřad
G4: Zpět na seznam rozpočtu
B6: Komentář: | D6: pol. 5167 - ZOZ na úseku stavebního řádu

Sheet Soc.VeciPrestupky (hidden)
A1: ORG 006201 Úsek soc.věcí a přestupků
G4: Zpět na seznam rozpočtu
B6: Komentář: | D6: pol. 5167 - ZOZ veřejného opatrovnictví

Sheet BytSprava (hidden)
A1: ORG 003730 Bytová správa
G4: Zpět na seznam rozpočtu
B6: Komentář: | D6: pol. 3112 - prodej bytů Drážné 539 a 569 (12 bytů)

Sheet DomyMajekMesta (hidden)
A1: ORG 003720 Domy v majetku města
G4: Zpět na seznam rozpočtu
B6: Komentář: | D6: pol. 5151, 5152, 5154 - zvýšení cen energií + přesun DDM (ORG 3500) na ORG 3720

Sheet Koupaliste (hidden)
A1: ORG 003560 Koupaliště
G4: Zpět na seznam rozpočtu
B6: Komentář: | D6: pol. 5169 - rozbory vody
D7: pol. 5151 - odhad - první naplnění bazénu, dopouštění + restaurace

Sheet Fot.Hriste (hidden)
A1: ORG 003530 Fotbalové hřiště Bařiny
G4: Zpět na seznam rozpočtu
B6: Komentář: | D6: pol. 5169 - regenerace trávníku - celkem náklady ve výši 120 000 Kč, 1/2 nákladů si hradí v roce 2021 FK, tato úprava trávníku se provádí na podzim a na jaro.

Sheet Parkovne (hidden)
A1: ORG 003523 Parkovné
G4: Zpět na seznam rozpočtu
B6: Komentář:

Sheet SbernyDvur (hidden)
A1: ORG 003555 Sběrný dvůr - provoz
G4: Zpět na seznam rozpočtu
B6: Komentář: | D6: pol. 6122 - nové kontejnery

Sheet VerejneProstranstvi (hidden)
A1: ORG 003551 Veřejné prostranství-drobné opravy
G4: Zpět na seznam rozpočtu
B6: Komentář: | D6: pol. 5171 - oprava koryta, kamenné zídky

Sheet Kanalizace (hidden)
A1: ORG 003542 Kanalizace
G4: Zpět na seznam rozpočtu
B6: Komentář: | D6: pol. 5171 - příkopové žlaby Libotín, odvodnění kolem farní zahrady

Sheet Kasna (hidden)
A1: ORG 003540 Kašna-odvod a čištění odpad.vod
G4: Zpět na seznam rozpočtu
B6: Komentář: | D6: pol. 5171 - oprava vany

Sheet Komunikace (hidden)
A1: ORG 003520 Komunikace-údržba, oprava
G4: Zpět na seznam rozpočtu
B6: Komentář: | D6: pol. 5154 - přechod pro chodce Bařiny

Sheet TechSprava (hidden)
A1: ORG 003510 Oddělení technické správy
G4: Zpět na seznam rozpočtu
B6: Komentář: | D6: pol. 3113 - prodej sypače za traktor+kropícího vozu

Sheet KulturniDum (hidden)
A1: ORG 002490 Kulturní dům
G4: Zpět na seznam rozpočtu
B6: Komentář:

Sheet UhradyDob.Cinnost (hidden)
A1: ORG 002000 Úhrady za dobývací činnost
G4: Zpět na seznam rozpočtu
B6: Komentář: | D6: pol. 5171 - Oprava plotu v MŠB ze strany od Kotouče. Celkem od Cemixu 1 mil.Kč, proplaceno 97.450 (Plandor), 32.540 (Schaffer), 248.443 (Kubelková)
